bitfinex/quotes_ETHUSD_20250112
["timestamp","ask_amount","ask_price","bid_price","bid_amount"]
[1736689468756,0.83,3264.2,3263.7,0.7709]
[1736689469159,0.14632088,3264.1,3263.7,0.7709]
[1736689469590,0.83,3264.2,3263.7,0.7709]
[1736689470228,0.14632088,3264.1,3263.7,0.7709]
[1736689470404,0.14632088,3264.1,3263.7,1.362482]
[1736689470709,0.83,3264.2,3263.7,1.362482]
[1736689471072,0.14632088,3264.1,3263.7,1.362482]
[1736689471314,0.8223,3264.5,3263.7,1.39312023]
[1736689471604,0.14632088,3264.4,3263.9,2.14466]
[1736689471991,2.1441,3264.8,3263.9,2.14466]
[1736689472192,2.46224,3264.8,3263.9,2.14466]
[1736689472394,0.14630666,3264.7,3263.9,2.14466]
[1736689472574,0.8223,3264.6,3263.8,0.7832]
[1736689472782,0.85560753,3264.6,3263.8,0.7832]
[1736689473102,2.29058666,3264.5,3263.8,0.7832]
[1736689473277,0.03330753,3264.4,3263.8,0.7832]
[1736689473478,0.14645591,3264.3,3263.8,6.1532]
[1736689473674,0.03330753,3264.4,3263.8,6.1532]
[1736689474058,0.03330753,3264.4,3263.8,5.37]
[1736689474289,0.96875591,3264.3,3263.5,6.1532]
[1736689474502,2.17784753,3264.2,3263.5,5.37]
[1736689474714,0.96871327,3264.1,3263.5,5.37]
[1736689474883,0.8223,3264.1,3263.5,5.37]
[1736689480703,2.96689,3264.1,3263.5,5.37]
[1736689485942,0.8223,3264.1,3263.5,5.37]
[1736689486150,2.14462,3264.0,3263.5,5.37]
[1736689487064,0.7755,3263.7,3263.5,5.37]
[1736689490005,0.14522611,3263.6,3263.3,0.55]
[1736689490399,0.7755,3263.7,3263.3,0.55]
[1736689495222,0.7755,3263.7,3263.1,3.0]
[1736689495420,0.7755,3263.7,3263.0,3.20391986]
[1736689495421,0.809,3263.4,3263.0,3.20391986]
[1736689495826,0.809,3263.4,3263.0,3.0]
[1736689496022,0.809,3263.6,3263.1,0.03064526]
[1736689496355,0.809,3263.8,3263.1,0.58064526]
[1736689496658,0.14522611,3263.7,3263.1,0.58064526]
[1736689496838,0.14522611,3263.7,3263.1,1.54955377]
[1736689497730,2.14481,3263.7,3263.1,1.51890851]
[1736689497933,0.14522611,3263.6,3263.1,0.55]
[1736689498635,0.7954,3263.4,3263.1,5.37]
[1736689498944,0.14494879,3263.3,3263.1,5.37]
[1736689499328,0.7954,3263.4,3263.1,5.37]
[1736689501623,0.7954,3263.6,3263.1,5.37]
[1736689501773,0.7954,3264.0,3263.3,0.015]
[1736689501976,0.31814,3264.8,3263.7,0.55]
[1736689501977,0.7954,3264.3,3263.7,0.55]
[1736689502181,0.7954,3264.3,3263.8,0.03063531]
[1736689502756,0.7954,3264.3,3263.7,0.55]
[1736689502953,2.14439,3264.4,3263.8,0.03063531]
[1736689503750,2.14439,3264.4,3263.7,1.432233]
[1736689503950,2.14439,3264.4,3263.7,0.55]
[1736689504172,2.14439,3264.4,3263.7,5.92]
[1736689504751,0.7954,3265.3,3264.2,0.55]
[1736689504946,0.7954,3265.3,3264.3,0.03063071]
[1736689504947,2.14394,3265.1,3264.3,0.03063071]
[1736689505136,2.437874,3265.1,3264.4,0.7574]
[1736689505541,2.14394,3265.1,3264.5,0.58063071]
[1736689505740,2.93915,3265.3,3264.5,0.58063071]
[1736689506985,2.14387,3265.2,3264.5,0.58063071]
[1736689507145,2.1439,3265.1,3264.5,0.58063071]
[1736689508385,0.14031713,3265.0,3264.5,0.58063071]
[1736689509875,2.28432713,3265.0,3264.5,0.58063071]
[1736689510371,2.28432713,3265.0,3264.5,5.95063071]
[1736689510682,2.14402,3264.9,3264.5,5.37]
[1736689511357,0.14031713,3264.8,3264.5,5.37]
[1736689523044,0.14031713,3264.8,3264.6,1.39173046]
[1736689523242,0.14031713,3264.8,3264.7,11.87524]
[1736689523448,2.14342,3265.8,3265.0,0.8036]
[1736689523740,2.14342,3265.8,3265.1,0.55]
[1736689523937,0.14185967,3265.7,3265.1,0.55]
[1736689524176,0.14185967,3265.7,3265.1,1.199758]
[1736689524345,2.14342,3265.8,3265.1,1.199758]
[1736689525227,0.14249911,3265.7,3265.1,1.199758]
[1736689525736,2.14331,3266.0,3265.2,0.03062166]
[1736689525902,2.28595146,3265.9,3265.2,0.03062166]
[1736689526098,2.28595146,3265.9,3265.2,0.44841363]
[1736689526769,0.14259146,3265.9,3265.4,6.1586]
[1736689526950,2.14325,3266.1,3265.5,0.03061927]
[1736689527130,0.14260567,3266.0,3265.5,0.03061927]
[1736689530130,2.14329,3266.0,3265.5,0.03061927]
[1736689530430,0.14260567,3265.9,3265.5,0.03061927]
[1736689531479,3.04829567,3265.9,3265.4,6.1586]
[1736689533708,2.14343,3265.8,3265.4,5.37]
[1736689534279,0.14283295,3265.7,3265.4,5.37]
[1736689534590,2.14343,3265.8,3265.4,5.37]
[1736689534790,0.14283295,3265.7,3265.4,5.37]
[1736689535264,2.14343,3265.8,3265.4,5.37]
[1736689537119,0.7623,3265.9,3265.4,5.37]
[1736689537419,0.14283295,3265.8,3265.4,5.37]
[1736689537808,2.14334,3266.0,3265.4,5.37]
[1736689538009,0.14304607,3265.7,3265.4,5.37]
[1736689538209,2.14334,3266.0,3265.4,5.37]
[1736689538389,0.14304607,3265.6,3265.4,5.37]
[1736689538595,2.14336,3265.9,3265.4,5.37]
[1736689538790,0.14304607,3265.8,3265.4,5.37]
[1736689539811,0.14304607,3265.8,3265.6,0.8174]
[1736689540014,0.7623,3266.2,3265.6,0.8174]
[1736689540212,3.196023,3266.2,3265.6,0.8174]
[1736689540507,0.14311709,3266.1,3265.6,0.8174]
[1736689540823,0.14311709,3266.1,3265.7,0.5725]
[1736689541029,0.14311709,3266.1,3266.0,1.3899]
[1736689541232,2.14273,3266.9,3266.1,0.5575]
[1736689541430,0.90230349,3266.8,3266.2,0.03061206]
[1736689541773,1.04069091,3266.8,3266.2,0.03061206]
[1736689541915,0.13838742,3266.8,3266.2,0.03061206]
[1736689542119,2.90494,3267.0,3266.2,0.03061206]
[1736689542321,0.13838742,3266.9,3266.2,0.03061206]
[1736689542918,2.14271,3266.9,3266.2,0.03061206]
[1736689543227,0.13838742,3266.8,3266.2,0.03061206]
[1736689543427,0.13838742,3266.8,3266.2,0.38699127]
[1736689544409,2.90495,3267.0,3266.2,0.38699127]
[1736689544973,0.13869981,3266.9,3266.3,0.8174]
[1736689545319,0.13869981,3266.9,3266.4,0.03061206]
[1736689549116,0.13869981,3266.9,3266.4,5.40061206]
[1736689550415,0.13869981,3266.9,3266.5,0.62180121]
[1736689550611,0.13869981,3266.9,3266.4,5.37]
[1736689550857,0.13869981,3266.9,3266.4,5.40061081]
[1736689552032,2.14251,3267.2,3266.4,5.4006096]
[1736689552237,0.13940275,3266.8,3266.4,5.4006096]
[1736689552438,2.14251,3267.2,3266.4,5.4006096]
[1736689552640,2.14251,3267.2,3266.4,6.27235748]
[1736689552980,0.13940275,3267.1,3266.4,6.24174788]
[1736689553271,0.13940275,3267.1,3266.5,0.0306096]
[1736689553475,0.13940275,3267.1,3266.4,6.24174788]
[1736689553670,2.28202275,3267.1,3266.4,6.24174788]
[1736689553819,2.14262,3267.1,3266.4,6.24174788]
[1736689554022,2.31536028,3267.0,3266.4,6.24174788]
[1736689557566,2.31536028,3267.0,3266.4,5.37]
[1736689559593,2.28205275,3267.0,3266.4,5.37]
[1736689560610,0.821,3266.9,3266.4,5.37]
[1736689560896,2.96396,3266.5,3266.4,5.37]
[1736689561092,2.96396,3266.5,3266.0,0.8143]
[1736689561292,0.03330753,3266.4,3266.0,0.8143]
[1736689561655,0.13961567,3266.3,3266.0,0.8143]
[1736689561942,2.1431,3266.3,3265.7,0.8143]
[1736689562200,0.13961567,3266.2,3265.8,0.8143]
[1736689562499,2.14298,3266.5,3265.8,0.84491705]
[1736689562658,2.357278,3266.5,3265.8,0.84491705]
[1736689562859,0.13961567,3266.4,3265.8,0.84491705]
[1736689567015,0.821,3266.8,3266.0,0.8143]
[1736689567223,0.13961567,3266.3,3266.1,0.03061318]
[1736689567517,2.14262,3267.1,3266.2,1.3718]
[1736689567686,2.14262,3267.1,3266.3,0.58061087]
[1736689568513,2.14262,3267.1,3266.4,0.8016]
[1736689569024,0.821,3267.2,3266.5,0.59561116]
[1736689569188,2.94191,3267.4,3266.5,0.59561116]
[1736689569387,0.03330753,3267.3,3266.5,0.565]
[1736689569701,0.03330753,3267.3,3266.5,0.915962]
[1736689570113,2.94191,3267.4,3266.6,0.8016]
[1736689570288,2.94191,3267.4,3266.7,0.03060805]
[1736689571055,2.14227,3267.6,3266.8,0.8016]
[1736689571182,2.14227,3267.6,3266.9,0.03060601]
[1736689572121,0.7995,3267.8,3266.9,0.03060601]
[1736689572326,2.14231,3267.5,3266.8,0.8016]
[1736689575130,2.14239,3267.4,3266.8,0.8016]
[1736689576226,2.14239,3267.4,3266.8,3.8016]
[1736689576797,0.14006278,3267.3,3266.8,3.8016]
[1736689580031,0.14006278,3267.3,3267.2,0.565]
[1736689580215,0.14006278,3267.3,3267.2,4.49795081]
[1736689580417,0.005,3267.9,3267.4,0.8016]
[1736689580615,0.005,3267.9,3267.5,0.03060025]
[1736689580838,0.005,3267.9,3267.5,0.58060025]
[1736689584355,0.005,3267.9,3267.5,0.55]
[1736689585391,0.005,3267.9,3267.5,0.5806]
[1736689586069,0.005,3267.9,3267.5,0.55]
[1736689586845,0.005,3267.9,3267.7,0.55]
[1736689587166,0.005,3267.9,3267.6,0.8016]
[1736689587366,0.005,3267.9,3267.6,0.83220001]
[1736689587647,0.005,3267.9,3267.6,0.8016]
[1736689591807,0.13646848,3267.8,3267.6,0.83220003]
[1736689592180,0.13646848,3267.8,3267.6,1.54963603]
[1736689592694,0.13646848,3267.8,3267.6,1.519036]
[1736689594607,0.13646848,3267.8,3267.6,1.54963612]
[1736689599769,0.13646848,3267.8,3267.4,5.37]
[1736689600061,2.14223,3267.7,3267.4,5.37]
[1736689600449,0.13716501,3267.6,3267.4,5.37]
[1736689600967,2.27940501,3267.6,3267.4,5.37]
[1736689601262,0.13716501,3267.6,3267.4,5.37]
[1736689601609,2.93193,3267.8,3267.4,5.37]
[1736689601812,0.13716501,3267.5,3267.4,5.37]
[1736689602015,3.22895375,3267.8,3267.4,5.37]
[1736689602265,0.13716501,3267.5,3267.4,5.37]
[1736689602483,2.14218,3267.7,3267.4,5.37]
[1736689602773,0.13716501,3267.5,3267.4,5.37]
[1736689602907,2.14218,3267.7,3267.4,5.37]
[1736689603110,0.13716501,3267.6,3267.4,5.37]
[1736689620962,0.13716501,3267.6,3267.2,0.55]
[1736689624989,0.13716501,3267.6,3267.2,1.22599]
[1736689625150,0.13716501,3267.6,3267.5,0.7559]
[1736689625473,0.005,3267.9,3267.6,0.55]
[1736689625775,0.005,3267.9,3267.8,0.7559]
[1736689626337,0.005,3267.9,3267.8,1.3209]
[1736689626938,0.005,3267.9,3267.8,6.6909]
[1736689628211,0.005,3267.9,3267.8,7.35999]
[1736689628508,0.005,3267.9,3267.8,6.1259]
[1736689633139,0.005,3267.9,3267.8,5.37]
[1736689633909,2.14704,3267.9,3267.8,5.37]
[1736689634442,2.28443238,3267.9,3267.8,5.37]
[1736689635157,3.04983238,3267.9,3267.8,5.37]
[1736689635310,3.64213348,3267.9,3267.8,5.37]
[1736689639004,2.14212,3267.8,3267.2,0.55]
[1736689639300,2.14212,3267.8,3267.3,0.03060299]
[1736689639509,0.13739238,3267.7,3267.3,0.03060299]
[1736689639707,2.14212,3267.8,3267.3,0.03060299]
[1736689639870,0.13739238,3267.6,3267.3,0.03060299]
[1736689640262,2.14218,3267.7,3267.3,0.03060299]
[1736689640470,0.13739238,3267.5,3267.3,0.03060299]
[1736689640764,2.14218,3267.7,3267.3,0.03060299]
[1736689640979,0.13739238,3267.4,3267.3,0.03060299]
[1736689641198,2.14218,3267.7,3267.3,0.03060299]
[1736689641362,0.7704,3267.9,3267.3,0.03060299]
[1736689641561,2.14218,3267.7,3267.3,0.03060299]
[1736689642014,0.13712238,3267.6,3267.3,0.03060299]
[1736689646912,2.91247,3267.9,3267.3,0.03060299]
[1736689647210,0.13712238,3267.5,3267.3,0.03060299]
[1736689647364,2.91247,3267.9,3267.3,0.03060299]
[1736689647564,0.13712238,3267.4,3267.3,0.03060299]
[1736689647817,2.91247,3267.9,3267.3,0.03060299]
[1736689647977,0.13712238,3267.4,3267.3,0.03060299]
[1736689648183,2.91247,3267.9,3267.3,0.03060299]
[1736689648395,0.13712238,3267.4,3267.3,0.03060299]
[1736689648601,2.14213,3267.8,3267.3,0.03060299]
[1736689648764,0.13705844,3267.4,3267.3,0.03060299]
[1736689648963,2.14213,3267.8,3267.3,0.03060299]
[1736689649204,0.13705844,3267.4,3267.3,0.03060299]
[1736689649376,2.14213,3267.8,3267.3,0.03060299]
[1736689649697,2.433383,3267.8,3267.3,0.03060299]
[1736689649905,0.13705844,3267.7,3267.3,0.03060299]
[1736689650202,2.433383,3267.8,3267.3,0.03060299]
[1736689650797,0.13705844,3267.7,3267.3,0.03060299]
[1736689651205,2.14213,3267.8,3267.2,0.55]
[1736689651378,0.13703177,3267.6,3267.2,0.55]
[1736689651579,2.14213,3267.8,3267.2,0.55]
[1736689652091,0.13703177,3267.7,3267.2,0.55]
[1736689653460,0.13703177,3267.7,3267.3,0.03060315]
[1736689653963,0.13701757,3267.6,3267.2,0.55]
[1736689654318,2.14213,3267.8,3267.2,0.55]
[1736689654522,0.13701757,3267.5,3267.2,0.55]
[1736689654732,2.14213,3267.8,3267.2,0.55]
[1736689654961,0.13701757,3267.4,3267.2,0.55]
[1736689655265,2.14213,3267.8,3267.2,0.55]
[1736689655416,0.005,3267.9,3267.4,0.799]
[1736689655746,0.005,3267.9,3267.2,0.55]
[1736689655747,0.13701757,3267.8,3267.6,0.799]
[1736689656736,0.13701757,3267.8,3267.7,0.55]
[1736689656933,0.13701757,3267.8,3267.7,0.94028883]
[1736689657334,0.005,3267.9,3267.7,0.58809952]
[1736689657560,0.005,3267.9,3267.7,0.5575]
[1736689659843,0.005,3267.9,3267.8,0.03059813]
[1736689660679,0.005,3267.9,3267.7,0.5575]
[1736689660877,0.005,3267.9,3267.8,0.03059814]
[1736689664450,0.005,3267.9,3267.7,0.5575]
[1736689665054,0.005,3267.9,3267.8,0.03059816]
[1736689668143,0.005,3267.9,3267.7,0.5575]
[1736689668328,0.14239412,3267.9,3267.7,0.5575]
[1736689668641,0.005,3267.9,3267.8,0.03059826]
[1736689668810,0.005,3267.9,3267.7,0.5575]
[1736689670244,0.005,3267.9,3267.7,0.03059819]
[1736689670446,0.005,3267.9,3267.6,5.37]
[1736689671158,0.13739412,3267.8,3267.6,5.37]
[1736689671356,0.13739412,3267.8,3267.6,5.40060012]
[1736689672441,0.13739412,3267.8,3267.6,6.01965013]
[1736689672733,0.13739412,3267.8,3267.6,5.98905001]
[1736689672938,0.005,3267.9,3267.6,5.98905001]
[1736689673145,0.13739412,3267.7,3267.6,5.98905001]
[1736689673643,0.005,3267.9,3267.6,5.98905001]
[1736689673847,0.13739412,3267.7,3267.6,5.37]
[1736689673997,0.005,3267.9,3267.6,5.40060014]
[1736689674193,0.13739412,3267.7,3267.6,5.40060014]
[1736689674392,0.005,3267.9,3267.6,5.40060014]
[1736689674632,0.13739412,3267.7,3267.6,5.40060014]
[1736689674997,0.005,3267.9,3267.6,5.40060014]
[1736689675213,0.13739412,3267.7,3267.6,5.40060014]
[1736689675411,0.005,3267.9,3267.6,5.40060014]
[1736689675630,0.13739412,3267.7,3267.6,5.40060014]
[1736689675829,0.005,3267.9,3267.6,5.40060014]
[1736689676039,0.13739412,3267.7,3267.6,5.40060014]
[1736689676349,0.13739412,3267.7,3267.6,6.01965015]
[1736689676497,0.13739412,3267.7,3267.6,5.98905001]
[1736689676699,0.005,3267.9,3267.6,5.98905001]
[1736689676932,0.13739412,3267.7,3267.6,5.37]
[1736689677116,0.005,3267.9,3267.6,5.40060017]
[1736689677534,0.13739412,3267.7,3267.6,5.40060017]
[1736689677736,0.005,3267.9,3267.6,5.40060017]
[1736689678001,0.13733019,3267.7,3267.6,5.40060017]
[1736689678194,0.005,3267.9,3267.6,6.01965019]
[1736689678399,0.13733019,3267.7,3267.6,5.37]
[1736689678718,0.005,3267.9,3267.6,5.40060017]
[1736689678957,0.13733019,3267.7,3267.6,5.40060017]
[1736689679126,0.005,3267.9,3267.6,5.40060017]
[1736689679707,0.13733019,3267.8,3267.6,5.40060017]
[1736689679909,0.005,3267.9,3267.6,6.01965019]
[1736689680109,0.005,3267.9,3267.7,0.5725]
[1736689680409,0.005,3267.9,3267.8,1.37799788]
[1736689680804,0.13733019,3267.7,3267.6,5.37]
[1736689681065,0.005,3267.9,3267.6,5.40060009]
[1736689681270,0.13735151,3267.7,3267.6,5.40060009]
[1736689681565,0.005,3267.9,3267.6,5.37]
[1736689681706,0.13735151,3267.7,3267.6,5.37]
[1736689681908,0.005,3267.9,3267.6,5.37]
[1736689682172,0.13735151,3267.7,3267.6,5.37]
[1736689682350,0.005,3267.9,3267.6,5.37]
[1736689682526,0.13735151,3267.7,3267.6,5.37]
[1736689682728,0.005,3267.9,3267.6,5.37]
[1736689682929,0.005,3267.9,3267.7,0.60310002]
[1736689683132,0.005,3267.9,3267.7,0.5725]
[1736689683354,0.005,3267.9,3267.7,0.0225]
[1736689683529,0.005,3267.9,3267.8,0.03059896]
[1736689683820,0.005,3267.9,3267.8,0.0075]
[1736689686621,0.005,3267.9,3267.7,0.0075]
[1736689686820,0.005,3267.9,3267.7,5.3775]
[1736689687118,0.005,3267.9,3267.8,0.55]
[1736689687417,0.005,3267.9,3267.8,0.58059825]
[1736689687675,0.005,3267.9,3267.8,0.55]
[1736689688353,0.005,3267.9,3267.7,5.37]
[1736689688516,0.005,3267.9,3267.7,5.40059872]
[1736689689217,0.005,3267.9,3267.7,5.37]
[1736689690517,0.13738702,3267.8,3267.7,6.23903325]
[1736689691288,0.13738702,3267.8,3267.7,6.24653325]
[1736689691682,0.13738702,3267.8,3267.7,8.40370325]
[1736689691965,0.005,3267.9,3267.8,20.67211]
[1736689692273,0.005,3267.9,3267.8,23.12847433]
[1736689693403,0.005,3267.9,3267.8,20.98636433]
[1736689693570,0.005,3267.9,3267.8,14.17]
[1736689693765,2.96561,3267.8,3267.6,3.20391986]
[1736689694078,2.96567,3267.8,3267.4,5.37]
[1736689694284,2.14231,3267.5,3267.4,5.37]
[1736689694471,2.96581,3267.5,3267.4,5.37]
[1736689694664,2.96581,3267.5,3266.9,0.7875]
[1736689695304,2.96581,3267.5,3267.0,0.58060538]
[1736689695885,0.13755041,3267.4,3267.0,0.03060538]
[1736689696079,2.96581,3267.5,3267.0,0.58060538]
[1736689696281,0.13706016,3267.4,3267.0,0.58060538]
[1736689696688,2.96581,3267.5,3267.0,0.03060538]
[1736689696890,2.96581,3267.5,3267.0,0.96241592]
[1736689696891,0.13708859,3267.4,3267.0,0.96241592]
[1736689697102,0.7769,3267.8,3267.1,0.565]
[1736689697278,0.7769,3267.8,3267.2,0.03060312]
[1736689697490,0.13708859,3267.7,3267.2,0.03060312]
[1736689697720,0.7769,3267.8,3267.2,0.03060312]
[1736689697922,0.7769,3267.8,3267.3,0.8127]
[1736689698121,0.13708859,3267.7,3267.4,0.03060212]
[1736689698312,0.7769,3267.8,3267.4,0.03060212]
[1736689698514,0.13709569,3267.7,3267.4,0.03060212]
[1736689698811,0.7769,3267.8,3267.4,0.03060212]
[1736689699011,0.13709569,3267.6,3267.4,0.03060212]
[1736689699334,0.7769,3267.8,3267.4,0.03060212]
[1736689699554,2.14707,3267.9,3267.4,0.73813267]
[1736689699555,0.005,3267.9,3267.4,0.73813267]
[1736689700121,0.13708151,3267.8,3267.4,0.73813267]
[1736689700307,0.13708151,3267.8,3267.4,0.55]
[1736689700831,2.14711,3267.9,3267.4,0.55]
[1736689700979,2.14711,3267.9,3267.3,3.0]
[1736689701324,2.14227,3267.6,3267.2,5.37]
[1736689701523,0.7769,3267.4,3267.2,5.37]
[1736689701752,2.17574753,3267.3,3267.2,5.37]
[1736689702034,2.31278641,3267.3,3267.2,5.37]
[1736689702194,2.27947888,3267.3,3267.2,5.37]
[1736689702394,3.05637888,3267.3,3267.2,5.37]
[1736689702602,3.05637888,3267.3,3267.2,5.92]
[1736689702799,3.05637888,3267.3,3267.2,5.37]
[1736689703803,3.36201677,3267.3,3267.2,5.92]
[1736689704801,3.36201677,3267.3,3267.2,0.55]
[1736689707898,2.58511677,3267.3,3267.2,0.55]
[1736689708097,3.36571677,3267.3,3267.2,0.55]
[1736689710168,0.91763888,3267.3,3267.2,0.55]
[1736689710323,0.13703888,3267.3,3267.2,0.55]
[1736689710527,2.92281,3267.7,3267.3,0.55]
[1736689710743,0.13629977,3267.6,3267.3,0.55]
[1736689712049,2.92768,3267.9,3267.3,0.55]
[1736689712532,0.13639217,3267.8,3267.5,0.0075]
[1736689716592,0.13639217,3267.8,3267.5,0.015]
[1736689716800,0.13639217,3267.8,3267.7,0.5575]
[1736689716937,0.13639217,3267.8,3267.7,0.588099]
[1736689717799,0.13639217,3267.8,3267.7,0.603099]
[1736689718141,0.005,3267.9,3267.8,0.0075]
[1736689718664,0.005,3267.9,3267.8,1.3422]
[1736689718879,0.005,3267.9,3267.8,1.6944469]
[1736689720179,0.005,3267.9,3267.8,3.5149075]
[1736689721962,0.005,3267.9,3267.8,1.3422]
[1736689722168,0.14181853,3267.9,3267.8,1.37279724]
[1736689722891,0.005,3267.9,3267.8,1.37279724]
[1736689723102,0.005,3267.9,3267.8,1.3422]
[1736689723266,0.005,3267.9,3267.8,1.690633]
[1736689724423,0.005,3267.9,3267.8,1.72123025]
[1736689726027,0.005,3267.9,3267.8,7.09123025]
[1736689726208,0.005,3267.9,3267.8,7.060633]
[1736689727291,0.005,3267.9,3267.8,9.202743]
[1736689730381,0.005,3267.9,3267.8,7.060633]
[1736689730584,0.14263568,3267.9,3267.8,7.060633]
[1736689731321,0.14263568,3267.9,3267.8,5.3775]
[1736689731618,0.005,3267.9,3267.8,5.3775]
[1736689735463,0.005,3267.9,3267.8,20.94666]
[1736689735748,0.005,3267.9,3267.8,23.51095]
[1736689735925,0.005,3267.9,3267.8,20.51095]
[1736689736127,0.005,3267.9,3267.8,22.562045]
[1736689736315,0.005,3267.9,3267.8,22.569545]
[1736689737241,0.005,3267.9,3267.8,25.77346486]
[1736689738012,0.005,3267.9,3267.8,22.569545]
[1736689740946,0.005,3267.9,3267.8,23.18517188]
[1736689741329,0.005,3267.9,3267.8,26.18517188]
[1736689744503,0.005,3267.9,3267.8,25.72434188]
[1736689746001,0.005,3267.9,3267.8,25.93834188]
[1736689749484,0.005,3267.9,3267.8,23.55443188]
[1736689750288,0.005,3267.9,3267.8,23.34043188]
[1736689751980,0.005,3267.9,3267.8,28.34043188]
[1736689752691,0.005,3267.9,3267.8,25.71709188]
[1736689752846,0.005,3267.9,3267.8,25.42873188]
[1736689753683,0.005,3267.9,3267.8,28.34043188]
[1736689755789,0.005,3267.9,3267.8,31.54435174]
[1736689755996,0.005,3267.9,3267.8,28.34043188]
[1736689759296,0.005,3267.9,3267.8,32.18513571]
[1736689760056,1e-05,3267.9,3267.8,32.18513571]
[1736689760479,0.7932,3269.3,3268.7,0.0225]
[1736689760781,0.7932,3269.3,3269.1,0.0075]
[1736689760782,0.13385085,3269.2,3269.1,0.0075]
[1736689761022,0.7932,3269.3,3269.1,0.03808609]
[1736689762332,0.005,3269.3,3269.2,2.14119]
[1736689762679,0.005,3269.3,3269.2,2.71369]
[1736689765321,0.7932,3269.3,3269.2,0.0075]
[1736689766430,0.7932,3269.3,3269.2,0.05308604]
[1736689766634,0.005,3269.3,3269.2,0.0225]
[1736689767049,0.005,3269.3,3269.2,0.60308372]
[1736689767337,0.1676027,3269.7,3269.2,23.34500572]
[1736689767641,0.01325156,3269.7,3269.6,15.29243]
[1736689767842,0.88322769,3270.8,3270.3,0.565]
[1736689767982,0.88322769,3270.8,3270.4,0.03057307]
[1736689768180,0.13463339,3270.7,3270.5,0.015]
[1736689768380,0.13463339,3270.7,3270.6,2.14778]
[1736689768686,0.09502769,3270.8,3270.7,3.52341]
[1736689769344,0.09502769,3270.8,3270.7,3.54647612]
[1736689769479,0.09502769,3270.8,3270.7,3.51591]
[1736689769922,0.09502769,3270.8,3270.7,25.69341]
[1736689770244,0.09502769,3270.8,3270.7,28.26696739]
[1736689770446,0.005,3271.1,3271.0,19.89001]
[1736689770780,0.005,3271.1,3271.0,17.10401]
[1736689770985,0.005,3271.1,3271.0,14.7425]
[1736689771299,0.8233,3271.1,3270.6,14.17]
[1736689771729,0.8233,3271.1,3270.7,0.04557013]
[1736689771903,0.005,3271.1,3270.8,0.0075]
[1736689772079,0.005,3271.1,3270.9,0.0075]
[1736689772478,0.13609792,3271.0,3270.9,0.0075]
[1736689772675,0.13609792,3271.0,3270.8,0.0075]
[1736689773480,0.005,3271.1,3270.8,0.0075]
[1736689773736,0.13609792,3270.9,3270.8,0.0075]
[1736689773912,0.005,3271.1,3270.8,0.0075]
[1736689775199,0.005,3271.1,3270.6,14.17]
[1736689775200,0.8183,3270.9,3270.6,14.17]
[1736689775386,0.13609792,3270.8,3270.6,14.17]
[1736689775892,2.27625792,3270.8,3270.6,14.17]
[1736689776208,0.13609792,3270.8,3270.3,0.0075]
[1736689776526,2.14024,3270.7,3270.2,0.0075]
[1736689777033,0.13609792,3270.6,3270.2,0.015]
[1736689777349,0.13609792,3270.6,3270.2,0.0075]
[1736689779208,0.8183,3270.5,3270.1,0.0075]
[1736689779401,2.95865,3270.5,3270.1,0.0075]
[1736689779727,0.13609792,3270.4,3270.1,0.015]
[1736689780782,0.13609792,3270.4,3270.1,2.1556]
[1736689781011,0.8183,3271.0,3270.3,3.015]
[1736689781240,0.8183,3271.0,3270.5,0.0075]
[1736689781588,0.13653892,3270.9,3270.5,0.0075]
[1736689782945,2.27662892,3270.9,3270.4,0.03807399]
[1736689783142,0.30949289,3270.8,3270.4,0.03807399]
[1736689783508,0.13664552,3270.7,3270.4,0.03807399]
[1736689783802,0.30949289,3270.8,3270.4,0.0075]
[1736689784000,0.13664552,3270.7,3270.1,0.55]
[1736689784204,2.14021,3270.7,3270.1,0.55]
[1736689784408,0.13664552,3270.6,3270.2,0.0075]
[1736689785018,0.8183,3270.5,3270.2,0.0075]
[1736689785387,0.13664552,3270.4,3270.2,0.0075]
[1736689785744,0.8183,3270.5,3270.2,0.0075]
[1736689786039,0.13664552,3270.4,3270.2,0.0075]
[1736689786248,0.8183,3270.5,3270.2,0.0075]
[1736689786852,0.13664552,3270.4,3270.1,0.015]
[1736689788423,0.13664552,3270.4,3270.1,0.59557661]
[1736689788628,0.8183,3270.5,3270.1,0.59557661]
[1736689789367,0.13664552,3270.4,3270.1,0.59557661]
[1736689789558,0.13664552,3270.4,3270.1,1.40357661]
[1736689789719,0.7902,3270.9,3270.3,0.0075]
[1736689789925,0.005,3271.1,3270.4,0.0075]
[1736689790480,0.1365247,3271.0,3270.5,0.0075]
[1736689790807,0.1365247,3271.0,3270.8,0.808]
[1736689791091,0.1365247,3271.0,3270.9,0.0075]
[1736689791582,0.005,3271.1,3270.9,0.0075]
[1736689793790,0.005,3271.1,3271.0,0.60306967]
[1736689794549,0.005,3271.1,3271.0,0.0225]
[1736689796075,0.005,3271.1,3271.0,1.3805]
[1736689796288,0.005,3271.1,3271.0,1.81813091]
[1736689797104,0.005,3271.1,3271.0,0.979564]
[1736689797287,0.005,3271.1,3271.0,0.5725]
[1736689797770,0.005,3271.1,3271.0,0.015]
[1736689797968,0.005,3271.1,3271.0,0.0075]
[1736689798219,0.005,3271.1,3271.0,0.0225]
[1736689799116,0.005,3271.1,3271.0,0.60306741]
[1736689799898,0.005,3271.1,3271.0,0.5725]
[1736689800629,0.005,3271.1,3270.6,5.37]
[1736689800764,0.7544,3271.0,3270.6,5.37]
[1736689801116,0.13697241,3270.9,3270.7,0.0075]
[1736689801770,0.13697241,3270.9,3270.6,5.37]
[1736689802422,0.13697241,3270.9,3270.7,0.0075]